[Event "98th Caplin Hastings Masters 2024-25"]
[Site "Hastings"]
[Date "2025.01.03"]
[Round "9.44"]
[White "Fryer, David W"]
[Black "Flynn, David"]
[Result "1-0"]
[ECO "B26"]
[WhiteElo "1928"]
[BlackElo "1834"]
[Annotator "NA RC"]
[PlyCount "105"]
[EventDate "2024.12.23"]
[EventType "swiss"]
[EventCountry "ENG"]
[SourceTitle "playchess.com"]
[Source "ChessBase"]
[SourceQuality "1"]
[TimeControl "5400+30"]

1. e4 {[%emt 0:00:03]} c5 {[%emt 0:05:58]} 2. Nc3 {[%emt 0:00:14]} Nc6 {[%emt 0:00:04]} 3. g3 {[%emt 0:00:43]} g6 {[%emt 0:00:04]} 4. Bg2 {[%emt 0:00:19]} Bg7 {[%emt 0:00:03]} 5. d3 {[%emt 0:00:21]} d6 {[%emt 0:00:03]} 6. Be3 {[%emt 0:00:38]} e5 {[%emt 0:04:35]} 7. Qd2 {[%emt 0:01:10]} Nd4 {[%emt 0:00:21]} 8. Nce2 {[%emt 0:01:17]} Ne7 {[%emt 0:01:37]} 9. c3 {[%emt 0:00:36]} Nxe2 {[%emt 0:00:34]} 10. Nxe2 {[%emt 0:00:23]} Qa5 {[%emt 0:12:45]} 11. O-O {[%emt 0:00:59]} O-O {[%emt 0:00:11]} 12. Bh6 {[%emt 0:05:18]} Bxh6 {[%emt 0:05:13]} 13. Qxh6 {[%emt 0:00:09]} Qb5 {[%emt 0:00:04]} 14. Qd2 {[%emt 0:00:36]} b6 {[%emt 0:05:12]} 15. f4 {[%emt 0:02:53]} f6 {[%emt 0:00:44]} 16. f5 {[%emt 0:05:35]} g5 {[%emt 0:00:14]} 17. g4 {[%emt 0:03:34]} Ba6 {[%emt 0:00:31]} 18. c4 {[%emt 0:07:49]} Qd7 {[%emt 0:04:37]} 19. Ng3 {[%emt 0:04:06]} Nc6 {[%emt 0:01:49]} 20. Kf2 {[%emt 0:04:44]} Kf7 {[%emt 0:13:47]} 21. Rh1 {[%emt 0:00:46]} Rh8 {[%emt 0:09:58]} 22. h4 {[%emt 0:03:40]} h6 {[%emt 0:00:07]} 23. Rh3 {[%emt 0:02:06]} Rag8 {[%emt 0:01:16]} 24. Rah1 {[%emt 0:00:44]} Qd8 {[%emt 0:00:27]} 25. Bf3 {[%emt 0:07:18]} Nd4 {[%emt 0:08:59]} 26. Bd1 {[%emt 0:00:22]} b5 {[%emt 0:03:15]} 27. b3 {[%emt 0:00:28]} bxc4 {[%emt 0:02:57]} 28. dxc4 {[%emt 0:07:18]} Bb7 {[%emt 0:02:18]} 29. Ke3 {[%emt 0:04:19]} Bc6 {[%emt 0:04:50]} 30. Kd3 {[%emt 0:02:31]} Qa8 {[%emt 0:05:42]} 31. Ke3 {[%emt 0:11:39]} Qd8 {[%emt 0:00:39]} 32. Bc2 {[%emt 0:02:13]} Ba8 {[%emt 0:03:19]} 33. Bd3 {[%emt 0:00:24]} Qf8 {[%emt 0:01:07]} 34. Qh2 {[%emt 0:01:14]} gxh4 {[%emt 0:01:13]} 35. Rxh4 {[%emt 0:00:26]} Rg5 {[%emt 0:00:30]} 36. Ne2 {[%emt 0:03:42]} Nc6 {[%emt 0:01:03]} 37. Nc3 {[%emt 0:00:54]} Nd4 {[%emt 0:01:03]} 38. Ne2 {[%emt 0:01:38]} Nc6 {[%emt 0:00:04]} 39. Ng1 {[%emt 0:00:32]} Rhg8 {[%emt 0:01:24]} 40. Be2 {[%emt 0:03:55]} Nd4 {[%emt 0:00:04]} 41. Bd1 {[%emt 0:01:01]} Nxf5+ {[%emt 0:01:34]} 42. exf5 {[%emt 0:01:28]} Bxh1 {[%emt 0:00:06]} 43. Qxh1 {[%emt 0:00:12]} Qa8 {[%emt 0:00:39]} 44. Bf3 {[%emt 0:00:42]} Qd8 {[%emt 0:00:22]} 45. Nh3 {[%emt 0:02:06]} Qa5 {[%emt 0:00:30]} 46. Nxg5+ {[%emt 0:02:13]} fxg5 {[%emt 0:00:00]} 47. Rxh6 {[%emt 0:00:47]} Qc3+ {[%emt 0:00:03]} 48. Ke2 {[%emt 0:02:06]} Qb2+ {[%emt 0:00:05]} 49. Kf1 {[%emt 0:01:02]} Qc1+ {[%emt 0:01:55]} 50. Kg2 {[%emt 0:00:20]} Qd2+ {[%emt 0:00:09]} 51. Kh3 {[%emt 0:00:33]} e4 {[%emt 0:00:09]} 52. Qd1 {[%emt 0:02:06]} Qf4 {[%emt 0:00:29]} 53. Qd5+ {[%emt 0:00:45]} 1-0

[Event "98th Caplin Hastings Masters 2024-25"]
[Site "Hastings"]
[Date "2025.01.03"]
[Round "9.45"]
[White "Wilson, Matthew R"]
[Black "Raffin-Sumyk, Piermael"]
[Result "1-0"]
[ECO "C01"]
[WhiteElo "1766"]
[BlackElo "1512"]
[Annotator "NA RC"]
[PlyCount "59"]
[EventDate "2024.12.23"]
[EventType "swiss"]
[EventCountry "ENG"]
[SourceTitle "playchess.com"]
[Source "ChessBase"]
[SourceQuality "1"]
[TimeControl "5400+30"]

1. e4 {[%emt 0:00:02]} e6 {[%emt 0:04:00]} 2. d4 {[%emt 0:00:10]} d5 {[%emt 0:00:19]} 3. exd5 {[%emt 0:00:05]} exd5 {[%emt 0:00:12]} 4. Bd3 {[%emt 0:00:03]} Nf6 {[%emt 0:00:19]} 5. Nf3 {[%emt 0:00:30]} Be7 {[%emt 0:00:46]} 6. O-O {[%emt 0:00:49]} O-O {[%emt 0:00:29]} 7. Re1 {[%emt 0:00:47]} Bg4 {[%emt 0:02:35]} 8. Nbd2 {[%emt 0:03:39]} c6 {[%emt 0:00:46]} 9. Nf1 {[%emt 0:00:28]} Nbd7 {[%emt 0:03:35]} 10. Ng3 {[%emt 0:00:34]} Bd6 {[%emt 0:05:00]} 11. Nf5 {[%emt 0:01:28]} Bxf5 {[%emt 0:02:51]} 12. Bxf5 {[%emt 0:00:14]} Qc7 {[%emt 0:00:27]} 13. Bg5 {[%emt 0:06:08]} Rfe8 {[%emt 0:07:33]} 14. Qd2 {[%emt 0:02:29]} Ne4 {[%emt 0:08:20]} 15. Qe3 {[%emt 0:02:42]} Ndf6 {[%emt 0:04:00]} 16. Bxf6 {[%emt 0:07:22]} Nxf6 {[%emt 0:01:12]} 17. Qg5 {[%emt 0:03:37]} h6 {[%emt 0:01:07]} 18. Qh4 {[%emt 0:00:54]} Rad8 {[%emt 0:06:53]} 19. c3 {[%emt 0:03:27]} a6 {[%emt 0:04:25]} 20. h3 {[%emt 0:00:33]} Bf4 {[%emt 0:05:33]} 21. g3 {[%emt 0:06:12]} Bd6 {[%emt 0:01:54]} 22. Kg2 {[%emt 0:00:49]} Rxe1 {[%emt 0:07:23]} 23. Rxe1 {[%emt 0:00:11]} Qb8 {[%emt 0:00:18]} 24. Ne5 {[%emt 0:04:16]} Bf8 {[%emt 0:03:57]} 25. f4 {[%emt 0:02:54]} Qc7 {[%emt 0:01:28]} 26. g4 {[%emt 0:00:46]} Bd6 {[%emt 0:04:52]} 27. g5 {[%emt 0:06:13]} Nh7 {[%emt 0:08:18]} 28. g6 {[%emt 0:03:29]} fxg6 {[%emt 0:00:54]} 29. Be6+ {[%emt 0:01:17]} Kh8 {[%emt 0:03:18]} 30. Nxg6# {[%emt 0:00:15]} 1-0

[Event "98th Caplin Hastings Masters 2024-25"]
[Site "Hastings"]
[Date "2025.01.03"]
[Round "9.46"]
[White "Kim, Nayoon B"]
[Black "Alcindor, Samuel"]
[Result "1-0"]
[ECO "A37"]
[WhiteElo "1663"]
[BlackElo "1927"]
[Annotator "NA RC"]
[PlyCount "101"]
[EventDate "2024.12.23"]
[EventType "swiss"]
[EventCountry "ENG"]
[SourceTitle "playchess.com"]
[Source "ChessBase"]
[SourceQuality "1"]
[TimeControl "5400+30"]

1. c4 {[%emt 0:00:02]} c5 {[%emt 0:02:20]} 2. Nc3 {[%emt 0:00:04]} Nc6 {[%emt 0:00:04]} 3. g3 {[%emt 0:00:05]} g6 {[%emt 0:00:05]} 4. Bg2 {[%emt 0:00:03]} Bg7 {[%emt 0:00:04]} 5. Nf3 {[%emt 0:00:03]} e5 {[%emt 0:00:06]} 6. O-O {[%emt 0:00:06]} Nge7 {[%emt 0:00:05]} 7. d3 {[%emt 0:00:42]} O-O {[%emt 0:00:09]} 8. a3 {[%emt 0:01:00]} d6 {[%emt 0:00:18]} 9. Rb1 {[%emt 0:00:43]} a5 {[%emt 0:00:11]} 10. Nb5 {[%emt 0:01:53]} h6 {[%emt 0:01:50]} 11. Bd2 {[%emt 0:06:04]} Rb8 {[%emt 0:07:28]} 12. Qa4 {[%emt 0:28:13]} b6 {[%emt 0:06:55]} 13. b4 {[%emt 0:07:45]} axb4 {[%emt 0:00:16]} 14. axb4 {[%emt 0:00:08]} Bg4 {[%emt 0:05:49]} 15. bxc5 {[%emt 0:04:01]} bxc5 {[%emt 0:00:12]} 16. h3 {[%emt 0:47:38]} Be6 {[%emt 0:00:49]} 17. Rfc1 {[%emt 0:00:00]} Qd7 {[%emt 0:02:10]} 18. Kh2 {[%emt 0:00:00]} f5 {[%emt 0:04:14]} 19. e3 {[%emt 0:00:00]} e4 {[%emt 0:19:43]} 20. Ne1 {[%emt 0:02:00]} Ne5 {[%emt 0:00:55]} 21. d4 {[%emt 0:00:00]} cxd4 {[%emt 0:03:58]} 22. exd4 {[%emt 0:00:00]} Nxc4 {[%emt 0:00:37]} 23. Rxc4 {[%emt 0:00:00]} Bxc4 {[%emt 0:00:19]} 24. Qxc4+ {[%emt 0:00:00]} d5 {[%emt 0:43:53]} 25. Qa4 {[%emt 0:00:00]} Rfc8 {[%emt 0:00:00]} 26. Bf1 {[%emt 0:00:00]} Nc6 {[%emt 0:00:00]} 27. Rc1 {[%emt 0:00:00]} Kh7 {[%emt 0:00:00]} 28. Bf4 {[%emt 0:00:00]} Ra8 {[%emt 0:00:00]} 29. Qd1 {[%emt 0:00:00]} Ra2 {[%emt 0:00:00]} 30. Kg1 {[%emt 0:00:00]} Rca8 {[%emt 0:00:00]} 31. Nc7 {[%emt 0:01:46]} Nxd4 {[%emt 0:00:00]} 32. Nxa8 {[%emt 0:01:34]} Rxa8 {[%emt 0:00:00]} 33. Rc7 {[%emt 0:03:10]} Qa4 {[%emt 0:00:00]} 34. Qxa4 {[%emt 0:00:00]} Rxa4 {[%emt 0:00:00]} 35. Be5 {[%emt 0:00:00]} Ne6 {[%emt 0:00:00]} 36. Re7 {[%emt 0:00:00]} d4 {[%emt 0:06:00]} 37. Rxe6 {[%emt 0:00:41]} Bxe5 {[%emt 0:00:00]} 38. Rxe5 {[%emt 0:00:05]} d3 {[%emt 0:00:00]} 39. Rd5 {[%emt 0:01:30]} Kg7 {[%emt 0:00:00]} 40. Nxd3 {[%emt 0:00:33]} exd3 {[%emt 0:00:00]} 41. Bxd3 {[%emt 0:00:11]} h5 {[%emt 0:00:00]} 42. Kg2 {[%emt 0:00:15]} Kf6 {[%emt 0:00:00]} 43. Rd6+ {[%emt 0:00:53]} Kg7 {[%emt 0:00:00]} 44. Bc2 {[%emt 0:00:23]} Ra3 {[%emt 0:00:00]} 45. Rd3 {[%emt 0:00:15]} Ra2 {[%emt 0:00:00]} 46. Bb3 {[%emt 0:00:15]} Ra3 {[%emt 0:00:00]} 47. Bc4 {[%emt 0:00:28]} Ra4 {[%emt 0:05:30]} 48. Rd7+ {[%emt 0:00:12]} Kf6 {[%emt 0:00:00]} 49. Bd5 {[%emt 0:00:51]} Ra3 {[%emt 0:00:00]} 50. f4 {[%emt 0:00:42]} Re3 {[%emt 0:00:00]} 51. Rf7# {[%emt 0:00:06]} 1-0

[Event "98th Caplin Hastings Masters 2024-25"]
[Site "Hastings"]
[Date "2025.01.03"]
[Round "9.47"]
[White "Keely, Leo A"]
[Black "Stokes, Stephen"]
[Result "1-0"]
[ECO "B02"]
[WhiteElo "1899"]
[BlackElo "1866"]
[Annotator "NA RC"]
[PlyCount "87"]
[EventDate "2024.12.23"]
[EventType "swiss"]
[EventCountry "ENG"]
[SourceTitle "playchess.com"]
[Source "ChessBase"]
[SourceQuality "1"]
[TimeControl "5400+30"]

1. e4 {[%emt 0:00:03]} Nf6 {[%emt 0:00:08]} 2. e5 {[%emt 0:00:18]} Nd5 {[%emt 0:00:10]} 3. Nc3 {[%emt 0:01:43]} e6 {[%emt 0:00:27]} 4. Nxd5 {[%emt 0:00:39]} exd5 {[%emt 0:00:13]} 5. d4 {[%emt 0:00:09]} d6 {[%emt 0:00:39]} 6. Nf3 {[%emt 0:00:18]} Nc6 {[%emt 0:00:41]} 7. Bf4 {[%emt 0:10:14]} dxe5 {[%emt 0:03:43]} 8. Nxe5 {[%emt 0:00:28]} Nxe5 {[%emt 0:00:59]} 9. Bxe5 {[%emt 0:00:21]} f6 {[%emt 0:02:46]} 10. Bg3 {[%emt 0:01:33]} Bf5 {[%emt 0:04:08]} 11. Be2 {[%emt 0:17:21]} Bd6 {[%emt 0:03:49]} 12. O-O {[%emt 0:01:26]} Bxg3 {[%emt 0:05:51]} 13. hxg3 {[%emt 0:00:33]} Qd6 {[%emt 0:00:49]} 14. Bh5+ {[%emt 0:01:36]} g6 {[%emt 0:03:16]} 15. Re1+ {[%emt 0:00:10]} Kd7 {[%emt 0:01:54]} 16. Bg4 {[%emt 0:02:34]} Bxg4 {[%emt 0:03:05]} 17. Qxg4+ {[%emt 0:00:15]} f5 {[%emt 0:00:28]} 18. Qh4 {[%emt 0:02:03]} h5 {[%emt 0:00:47]} 19. Re5 {[%emt 0:03:25]} Rae8 {[%emt 0:01:17]} 20. Rae1 {[%emt 0:01:45]} a6 {[%emt 0:05:05]} 21. Qf4 {[%emt 0:03:17]} Rxe5 {[%emt 0:01:21]} 22. dxe5 {[%emt 0:00:21]} Qe6 {[%emt 0:00:36]} 23. Qd4 {[%emt 0:01:21]} Kc8 {[%emt 0:01:34]} 24. Qa7 {[%emt 0:00:55]} Re8 {[%emt 0:02:46]} 25. Qa8+ {[%emt 0:00:12]} Kd7 {[%emt 0:00:14]} 26. Qxb7 {[%emt 0:00:10]} Qc6 {[%emt 0:01:49]} 27. Qxc6+ {[%emt 0:05:30]} Kxc6 {[%emt 0:00:06]} 28. f4 {[%emt 0:00:08]} Rb8 {[%emt 0:03:07]} 29. b3 {[%emt 0:02:41]} Rb4 {[%emt 0:00:10]} 30. Kf2 {[%emt 0:01:43]} Kd7 {[%emt 0:02:16]} 31. c3 {[%emt 0:01:04]} Re4 {[%emt 0:00:28]} 32. Rxe4 {[%emt 0:02:16]} fxe4 {[%emt 0:00:56]} 33. b4 {[%emt 0:00:11]} Ke6 {[%emt 0:01:48]} 34. Ke3 {[%emt 0:00:25]} Kd7 {[%emt 0:04:44]} 35. Kd4 {[%emt 0:00:44]} c6 {[%emt 0:01:40]} 36. c4 {[%emt 0:00:21]} Kc7 {[%emt 0:00:42]} 37. cxd5 {[%emt 0:00:09]} cxd5 {[%emt 0:00:08]} 38. a4 {[%emt 0:00:12]} Kc6 {[%emt 0:00:17]} 39. a5 {[%emt 0:03:24]} Kb7 {[%emt 0:04:26]} 40. e6 {[%emt 0:00:11]} Kc7 {[%emt 0:00:42]} 41. b5 {[%emt 0:00:08]} axb5 {[%emt 0:00:48]} 42. a6 {[%emt 0:00:23]} b4 {[%emt 0:00:20]} 43. a7 {[%emt 0:00:08]} Kb7 {[%emt 0:00:03]} 44. e7 {[%emt 0:00:08]} 1-0

[Event "98th Caplin Hastings Masters 2024-25"]
[Site "Hastings"]
[Date "2025.01.03"]
[Round "9.49"]
[White "Choi, Hyunbin"]
[Black "Graham, Oliver"]
[Result "1-0"]
[ECO "C41"]
[WhiteElo "1673"]
[BlackElo "1789"]
[Annotator "NA RC"]
[PlyCount "83"]
[EventDate "2024.12.23"]
[EventType "swiss"]
[EventCountry "ENG"]
[SourceTitle "playchess.com"]
[Source "ChessBase"]
[SourceQuality "1"]
[TimeControl "5400+30"]

1. e4 {[%emt 0:00:04]} e5 {[%emt 0:03:27]} 2. Nf3 {[%emt 0:00:08]} Nc6 {[%emt 0:00:05]} 3. Bc4 {[%emt 0:00:12]} Be7 {[%emt 0:00:09]} 4. d4 {[%emt 0:00:10]} exd4 {[%emt 0:00:12]} 5. Nxd4 {[%emt 0:00:14]} Nf6 {[%emt 0:00:21]} 6. Nc3 {[%emt 0:00:19]} d6 {[%emt 0:00:14]} 7. O-O {[%emt 0:00:10]} O-O {[%emt 0:00:07]} 8. h3 {[%emt 0:00:37]} Bd7 {[%emt 0:00:14]} 9. a3 {[%emt 0:06:40]} a6 {[%emt 0:08:33]} 10. f4 {[%emt 0:01:02]} Nxd4 {[%emt 0:00:26]} 11. Qxd4 {[%emt 0:00:09]} Bc6 {[%emt 0:00:33]} 12. Bd2 {[%emt 0:00:52]} h6 {[%emt 0:01:05]} 13. Rae1 {[%emt 0:00:41]} b6 {[%emt 0:00:40]} 14. b4 {[%emt 0:01:53]} Bb7 {[%emt 0:00:40]} 15. Qd3 {[%emt 0:02:48]} c5 {[%emt 0:00:48]} 16. b5 {[%emt 0:01:18]} axb5 {[%emt 0:00:33]} 17. Nxb5 {[%emt 0:01:00]} Bc6 {[%emt 0:11:07]} 18. Bc1 {[%emt 0:12:49]} Qd7 {[%emt 0:02:15]} 19. Nc3 {[%emt 0:07:59]} Rab8 {[%emt 0:04:38]} 20. Bb5 {[%emt 0:07:34]} Rfe8 {[%emt 0:01:59]} 21. Bxc6 {[%emt 0:04:45]} Qxc6 {[%emt 0:00:21]} 22. Bb2 {[%emt 0:02:42]} b5 {[%emt 0:00:56]} 23. Nd5 {[%emt 0:01:35]} Nxd5 {[%emt 0:03:05]} 24. exd5 {[%emt 0:00:09]} Qd7 {[%emt 0:00:49]} 25. f5 {[%emt 0:02:18]} Bf6 {[%emt 0:05:01]} 26. Bxf6 {[%emt 0:00:18]} gxf6 {[%emt 0:00:24]} 27. Re4 {[%emt 0:02:33]} Rxe4 {[%emt 0:00:40]} 28. Qxe4 {[%emt 0:00:05]} Re8 {[%emt 0:00:11]} 29. Qg4+ {[%emt 0:00:16]} Kh7 {[%emt 0:00:20]} 30. Rf3 {[%emt 0:02:12]} Qe7 {[%emt 0:06:17]} 31. Rg3 {[%emt 0:00:36]} Qf8 {[%emt 0:00:44]} 32. Rb3 {[%emt 0:01:42]} Rb8 {[%emt 0:01:54]} 33. Qe2 {[%emt 0:00:48]} b4 {[%emt 0:05:29]} 34. axb4 {[%emt 0:00:26]} Qc8 {[%emt 0:01:35]} 35. Qe7 {[%emt 0:00:45]} Qxf5 {[%emt 0:01:57]} 36. Qxf7+ {[%emt 0:00:20]} Kh8 {[%emt 0:00:42]} 37. Rg3 {[%emt 0:00:03]} Qg5 {[%emt 0:04:24]} 38. Rxg5 {[%emt 0:00:09]} fxg5 {[%emt 0:00:38]} 39. Qf6+ {[%emt 0:00:04]} Kh7 {[%emt 0:00:16]} 40. Qxd6 {[%emt 0:00:07]} Rxb4 {[%emt 0:00:23]} 41. Qe7+ {[%emt 0:00:11]} Kg6 {[%emt 0:00:21]} 42. d6 {[%emt 0:00:05]} 1-0

[Event "98th Caplin Hastings Masters 2024-25"]
[Site "Hastings"]
[Date "2025.01.03"]
[Round "9.50"]
[White "Prudent, Sylvio"]
[Black "Han, Yongsu"]
[Result "1-0"]
[ECO "D05"]
[WhiteElo "1780"]
[BlackElo "1718"]
[Annotator "NA RC"]
[PlyCount "123"]
[EventDate "2024.12.23"]
[EventType "swiss"]
[EventCountry "ENG"]
[SourceTitle "playchess.com"]
[Source "ChessBase"]
[SourceQuality "1"]
[TimeControl "5400+30"]

1. Nf3 {[%emt 0:06:42]} d5 {[%emt 0:00:06]} 2. b3 {[%emt 0:00:02]} c5 {[%emt 0:00:37]} 3. Bb2 {[%emt 0:00:09]} Nf6 {[%emt 0:00:27]} 4. e3 {[%emt 0:00:15]} e6 {[%emt 0:00:14]} 5. d4 {[%emt 0:00:19]} Bd6 {[%emt 0:01:27]} 6. Bd3 {[%emt 0:00:48]} Nc6 {[%emt 0:00:52]} 7. O-O {[%emt 0:00:06]} Qc7 {[%emt 0:02:12]} 8. a3 {[%emt 0:00:36]} e5 {[%emt 0:00:29]} 9. dxe5 {[%emt 0:01:36]} Nxe5 {[%emt 0:00:12]} 10. Bb5+ {[%emt 0:00:17]} Bd7 {[%emt 0:01:09]} 11. Bxd7+ {[%emt 0:00:17]} Kxd7 {[%emt 0:01:47]} 12. Nc3 {[%emt 0:02:02]} Nxf3+ {[%emt 0:03:16]} 13. Qxf3 {[%emt 0:01:01]} Bxh2+ {[%emt 0:00:25]} 14. Kh1 {[%emt 0:00:04]} Be5 {[%emt 0:00:09]} 15. Nxd5 {[%emt 0:00:08]} Nxd5 {[%emt 0:03:37]} 16. Qxd5+ {[%emt 0:00:08]} Bd6 {[%emt 0:00:38]} 17. Be5 {[%emt 0:16:28]} Rae8 {[%emt 0:04:09]} 18. Qxf7+ {[%emt 0:02:06]} Kc8 {[%emt 0:02:27]} 19. Qxc7+ {[%emt 0:04:03]} Bxc7 {[%emt 0:00:41]} 20. Bxg7 {[%emt 0:00:31]} Re6 {[%emt 0:02:12]} 21. g3 {[%emt 0:00:51]} Rg8 {[%emt 0:02:03]} 22. Bc3 {[%emt 0:00:05]} h5 {[%emt 0:01:54]} 23. Rg1 {[%emt 0:01:12]} Re4 {[%emt 0:06:54]} 24. g4 {[%emt 0:08:24]} hxg4 {[%emt 0:04:11]} 25. Rae1 {[%emt 0:04:17]} g3 {[%emt 0:12:47]} 26. f4 {[%emt 0:00:31]} Re6 {[%emt 0:03:18]} 27. Kg2 {[%emt 0:00:26]} c4 {[%emt 0:07:05]} 28. b4 {[%emt 0:03:15]} Bb6 {[%emt 0:01:08]} 29. Kf3 {[%emt 0:03:10]} Rge8 {[%emt 0:01:59]} 30. Bd2 {[%emt 0:00:55]} c3 {[%emt 0:02:10]} 31. Bc1 {[%emt 0:01:08]} Bd8 {[%emt 0:07:27]} 32. Kxg3 {[%emt 0:03:24]} Rh6 {[%emt 0:05:00]} 33. Rh1 {[%emt 0:02:15]} Rg8+ {[%emt 0:00:40]} 34. Kf3 {[%emt 0:00:21]} Rhg6 {[%emt 0:00:30]} 35. Ke4 {[%emt 0:00:39]} Rg2 {[%emt 0:00:48]} 36. Kd3 {[%emt 0:00:13]} Bf6 {[%emt 0:00:42]} 37. Rh6 {[%emt 0:01:50]} Bg7 {[%emt 0:03:14]} 38. Rhh1 {[%emt 0:13:52]} Rd8+ {[%emt 0:02:11]} 39. Kc4 {[%emt 0:00:21]} Rxc2 {[%emt 0:00:18]} 40. Kb3 {[%emt 0:00:08]} Rg2 {[%emt 0:01:08]} 41. Rhg1 {[%emt 0:00:36]} Rxg1 {[%emt 0:00:24]} 42. Rxg1 {[%emt 0:00:03]} Bf6 {[%emt 0:00:26]} 43. e4 {[%emt 0:00:16]} Bd4 {[%emt 0:00:58]} 44. Rd1 {[%emt 0:00:32]} b5 {[%emt 0:03:36]} 45. f5 {[%emt 0:03:13]} Be5 {[%emt 0:02:10]} 46. Rxd8+ {[%emt 0:00:11]} Kxd8 {[%emt 0:00:04]} 47. Be3 {[%emt 0:00:05]} a6 {[%emt 0:00:08]} 48. Bf2 {[%emt 0:00:09]} Kd7 {[%emt 0:01:42]} 49. Be1 {[%emt 0:00:04]} Kd6 {[%emt 0:01:03]} 50. Bxc3 {[%emt 0:00:07]} Bf4 {[%emt 0:00:14]} 51. Kc2 {[%emt 0:01:09]} Bh2 {[%emt 0:01:06]} 52. Kd3 {[%emt 0:00:48]} Bf4 {[%emt 0:00:07]} 53. Bb2 {[%emt 0:02:13]} Bg3 {[%emt 0:00:42]} 54. Ke3 {[%emt 0:00:43]} Bh2 {[%emt 0:01:51]} 55. Kf3 {[%emt 0:00:26]} Ke7 {[%emt 0:00:39]} 56. e5 {[%emt 0:00:12]} Bg1 {[%emt 0:00:08]} 57. Ke4 {[%emt 0:00:05]} Bb6 {[%emt 0:00:06]} 58. Kd5 {[%emt 0:00:07]} Bd8 {[%emt 0:01:30]} 59. f6+ {[%emt 0:00:29]} Ke8 {[%emt 0:00:19]} 60. e6 {[%emt 0:00:30]} a5 {[%emt 0:00:49]} 61. f7+ {[%emt 0:00:38]} Ke7 {[%emt 0:00:22]} 62. Bf6+ {[%emt 0:00:07]} 1-0

[Event "98th Caplin Hastings Masters 2024-25"]
[Site "Hastings"]
[Date "2025.01.03"]
[Round "9.51"]
[White "Butt, Laurence"]
[Black "Bryant, Marc A"]
[Result "1-0"]
[ECO "D01"]
[WhiteElo "1818"]
[BlackElo "1825"]
[Annotator "NA RC"]
[PlyCount "62"]
[EventDate "2024.12.23"]
[EventType "swiss"]
[EventCountry "ENG"]
[SourceTitle "playchess.com"]
[Source "ChessBase"]
[SourceQuality "1"]
[TimeControl "5400+30"]

1. d4 {[%emt 0:00:08]} Nf6 {[%emt 0:00:10]} 2. Bg5 {[%emt 0:00:02]} d5 {[%emt 0:00:16]} 3. Nc3 {[%emt 0:00:46]} Bf5 {[%emt 0:00:53]} 4. e3 {[%emt 0:00:14]} Nbd7 {[%emt 0:01:10]} 5. Bd3 {[%emt 0:00:42]} Bg6 {[%emt 0:02:00]} 6. Nf3 {[%emt 0:00:07]} h6 {[%emt 0:00:08]} 7. Bxg6 {[%emt 0:01:01]} hxg5 {[%emt 0:00:30]} 8. Bd3 {[%emt 0:01:48]} e6 {[%emt 0:00:23]} 9. Nxg5 {[%emt 0:01:38]} Bb4 {[%emt 0:00:07]} 10. Nf3 {[%emt 0:00:30]} Ne4 {[%emt 0:00:48]} 11. Bxe4 {[%emt 0:00:19]} dxe4 {[%emt 0:00:06]} 12. Nd2 {[%emt 0:00:09]} Qg5 {[%emt 0:01:17]} 13. g3 {[%emt 0:01:05]} f5 {[%emt 0:00:29]} 14. Qe2 {[%emt 0:00:50]} Qe7 {[%emt 0:05:11]} 15. Nb5 {[%emt 0:07:02]} Nb6 {[%emt 0:02:08]} 16. c3 {[%emt 0:00:38]} Bd6 {[%emt 0:00:05]} 17. Nxd6+ {[%emt 0:00:35]} cxd6 {[%emt 0:00:23]} 18. f3 {[%emt 0:01:21]} d5 {[%emt 0:02:33]} 19. fxe4 {[%emt 0:00:29]} dxe4 {[%emt 0:00:13]} 20. a4 {[%emt 0:03:33]} Rc8 {[%emt 0:09:08]} 21. Qb5+ {[%emt 0:02:40]} Kf7 {[%emt 0:01:03]} 22. O-O {[%emt 0:00:25]} Rh3 {[%emt 0:03:30]} 23. Rxf5+ {[%emt 0:04:54]} Kg6 {[%emt 0:03:00]} 24. Rf4 {[%emt 0:11:11]} Rch8 {[%emt 0:02:35]} 25. Qe5 {[%emt 0:07:12]} R8h5 {[%emt 0:04:22]} 26. Qxe4+ {[%emt 0:00:38]} Kh6 {[%emt 0:00:15]} 27. Rf2 {[%emt 0:05:07]} Nd5 {[%emt 0:01:41]} 28. Nf3 {[%emt 0:04:35]} Nf6 {[%emt 0:01:54]} 29. Qd3 {[%emt 0:45:21]} Ng4 {[%emt 0:05:03]} 30. Rg2 {[%emt 0:00:00]} Qd6 {[%emt 0:04:26]} 31. Qe4 {[%emt 0:00:00]} g5 {[%emt 0:01:31]} 1-0

[Event "98th Caplin Hastings Masters 2024-25"]
[Site "Hastings"]
[Date "2025.01.03"]
[Round "9.52"]
[White "Miller, Daniel"]
[Black "Wheeler, James M"]
[Result "1-0"]
[ECO "E64"]
[WhiteElo "2093"]
[BlackElo "1863"]
[Annotator "NA RC"]
[PlyCount "85"]
[EventDate "2024.12.23"]
[EventType "swiss"]
[EventCountry "ENG"]
[SourceTitle "playchess.com"]
[Source "ChessBase"]
[SourceQuality "1"]
[TimeControl "5400+30"]

1. d4 {[%emt 0:00:01]} Nf6 {[%emt 0:00:28]} 2. c4 {[%emt 0:00:05]} c5 {[%emt 0:00:11]} 3. d5 {[%emt 0:00:05]} g6 {[%emt 0:00:11]} 4. Nc3 {[%emt 0:00:12]} d6 {[%emt 0:00:13]} 5. Nf3 {[%emt 0:00:13]} Bg7 {[%emt 0:00:14]} 6. g3 {[%emt 0:00:43]} O-O {[%emt 0:00:27]} 7. Bg2 {[%emt 0:00:25]} Na6 {[%emt 0:00:16]} 8. O-O {[%emt 0:00:42]} Nc7 {[%emt 0:00:13]} 9. e4 {[%emt 0:01:11]} a6 {[%emt 0:00:48]} 10. a4 {[%emt 0:00:13]} Rb8 {[%emt 0:00:17]} 11. a5 {[%emt 0:00:12]} Bd7 {[%emt 0:01:20]} 12. Nd2 {[%emt 0:01:46]} b5 {[%emt 0:00:53]} 13. axb6 {[%emt 0:00:29]} Rxb6 {[%emt 0:00:09]} 14. f4 {[%emt 0:00:34]} Ng4 {[%emt 0:02:23]} 15. Nf3 {[%emt 0:02:03]} f5 {[%emt 0:05:41]} 16. h3 {[%emt 0:13:53]} fxe4 {[%emt 0:02:13]} 17. hxg4 {[%emt 0:03:07]} exf3 {[%emt 0:00:08]} 18. Bxf3 {[%emt 0:00:20]} Rb4 {[%emt 0:02:40]} 19. Qe2 {[%emt 0:02:36]} Re8 {[%emt 0:03:34]} 20. Ne4 {[%emt 0:04:04]} Qb8 {[%emt 0:04:14]} 21. Rb1 {[%emt 0:07:31]} Rb3 {[%emt 0:05:17]} 22. Kg2 {[%emt 0:04:44]} Qb6 {[%emt 0:02:21]} 23. Rh1 {[%emt 0:06:44]} e6 {[%emt 0:01:46]} 24. Nd2 {[%emt 0:08:27]} Rb4 {[%emt 0:02:31]} 25. Kf1 {[%emt 0:01:25]} Bd4 {[%emt 0:08:41]} 26. Qh2 {[%emt 0:03:17]} Re7 {[%emt 0:00:09]} 27. b3 {[%emt 0:08:59]} exd5 {[%emt 0:00:23]} 28. Qh4 {[%emt 0:09:44]} Rf7 {[%emt 0:00:37]} 29. Bb2 {[%emt 0:07:34]} Rxb3 {[%emt 0:04:09]} 30. Qd8+ {[%emt 0:06:44]} Be8 {[%emt 0:00:14]} 31. Nxb3 {[%emt 0:03:10]} Qxb3 {[%emt 0:00:19]} 32. Bxd5 {[%emt 0:01:00]} Qd3+ {[%emt 0:04:44]} 33. Kg2 {[%emt 0:00:13]} Qe2+ {[%emt 0:02:39]} 34. Kh3 {[%emt 0:00:21]} Nxd5 {[%emt 0:00:30]} 35. cxd5 {[%emt 0:03:31]} Rd7 {[%emt 0:03:49]} 36. Qb8 {[%emt 0:00:12]} Bxb2 {[%emt 0:00:48]} 37. Rxb2 {[%emt 0:01:25]} Qe4 {[%emt 0:00:59]} 38. Rbb1 {[%emt 0:00:23]} Re7 {[%emt 0:01:15]} 39. Qxd6 {[%emt 0:00:58]} Bf7 {[%emt 0:00:41]} 40. Qxc5 {[%emt 0:00:34]} Bxd5 {[%emt 0:00:21]} 41. Rbe1 {[%emt 0:00:35]} Qg2+ {[%emt 0:00:41]} 42. Kh4 {[%emt 0:00:04]} h6 {[%emt 0:01:45]} 43. Qxe7 {[%emt 0:00:43]} 1-0